Cogmind - Beta 15 @@@ ROGUE MODE // 2025.05.21 @ 12:04:24 Player: Epsilon 11 Result: Destroyed by Y-64 Sentinel with KE Penetrator Performance ------------- Evolutions (5) 2500 Regions Visited (15) 3000 Robots Destroyed (141) 705 Value Destroyed (5905) 5905 Prototype IDs (17) 340 Alien Tech Used (0) 0 Bonus (3147) 3147 TOTAL SCORE: 15597 Bonus ------- High Alert Combat Kills 680 Follower Combat Kills 167 Entered Garrisons 800 Used RIF Installer 1500 Cogmind --------- Core Integrity 0/1000 Matter 9/300 Energy 98/100 System Corruption 11% Temperature Cool (0) Movement Core (50) Location -5/Extension Parts ------- > --- POWER (2) -------- (None) > --- PROPULSION (5) --- (None) > --- UTILITY (7) ------ Advanced Weapon Cycler Relay Coupler [NC] (6) Relay Coupler [Swarmer] (28) > --- WEAPON (3) ------- (None) > --- INVENTORY (5) ---- Improved Cooling System Medium Storage Unit Weapon Cycler Relay Coupler [Duelist] (26) Peak State ------------ > --- POWER ------------ Hybrid Deuterium Engine Angular Momentum Engine > --- PROPULSION ------- Carbon-fiber Leg Armored Leg Improved VSS Leg Advanced VSS Leg Advanced VSS Leg > --- UTILITY ---------- Large Storage Unit Advanced Targeting Computer Improved Reaction Control System Improved Core Shielding Relay Coupler [NC] Relay Coupler [Grunt] > --- WEAPON ----------- Heavy Ion Cannon Remote Datajack > --- INVENTORY -------- Cargo Legs Improved Cooling System Improved Cooling System Matter Compressor Weapon Cycler Relay Coupler [Swarmer] Relay Coupler [Duelist] Relay Coupler [Demolisher] Relay Coupler [Specialist] Relay Coupler [Behemoth] Coil Gun Rocket Array Mace [Rating: 68] Favorites ----------- Power Light Nuclear Core Engine Subdweller Power Source Power Core Light Nuclear Core Propulsion Light Treads Treads Light Treads Leg Aluminum Leg Wheel Wheel Hover Unit Gravmag System Utility Large Storage Unit Device Improved Heat Sink Storage Large Storage Unit Processor Advanced Targeting Computer Hackware Relay Coupler [NC] Protection Makeshift Light Armor Plating Weapon Subdweller Machine Gun Energy Gun Spread Laser Energy Cannon Subdweller Beam Cannon Ballistic Gun Subdweller Machine Gun Ballistic Cannon Heavy Flak Cannon Launcher Mini Grenade Launcher Special Weapon Remote Datajack Impact Weapon Mace Build | -11 -10 -10 -8 -8 -8 -8 -7 -7 -7 -6 -6 -5 -5 -5 -5 ------- Run | Yrd Mat Sub Mat Gar Mat Gar Fac Gar Fac Fac Gar Fac Was Fac Ext Slots Evolved 10 | . . . 4 . . . 2 . . 2 . 2 . . . Power 1 | . . . . . . . 1 . . . . . . . . Propulsion 3 | . . . 3 . . . . . . . . . . . . Utility 5 | . . . 1 . . . 1 . . 2 . 1 . . . Weapon 1 | . . . . . . . . . . . . 1 . . . Parts Attached 127 | 6 9 15 10 19 2 10 9 18 5 15 8 . . . 1 Power 17 | 1 1 2 2 2 . 1 1 3 . 4 . . . . . Engine 7 | 1 . 2 1 . . 1 . . . 2 . . . . . Core 10 | . 1 . 1 2 . . 1 3 . 2 . . . . . Reactor . | . . . . . . . . . . . . . . . . Propulsion 51 | 2 2 5 5 7 1 5 5 9 4 5 1 . . . . Treads 8 | . . 2 2 1 . 3 . . . . . . . . . Leg 25 | . . . 1 3 . 2 . 9 4 5 1 . . . . Wheel 13 | 2 2 3 2 3 1 . . . . . . . . . . Hover 5 | . . . . . . . 5 . . . . . . . . Flight . | . . . . . . . . . . . . . . . . Utility 29 | 1 2 2 2 3 1 2 1 4 . 4 6 . . . 1 Device 10 | . . . . 2 1 1 . 2 . 2 1 . . . 1 Storage 2 | 1 1 . . . . . . . . . . . . . . Processor 1 | . . . . . . . . 1 . . . . . . . Hackware 8 | . . . . . . . 1 1 . 2 4 . . . . Protection 8 | . 1 2 2 1 . 1 . . . . 1 . . . . Artifact . | . . . . . . . . . . . . . . . . Weapon 30 | 2 4 6 1 7 . 2 2 2 1 2 1 . . . . Energy Gun 11 | 2 3 2 1 2 . . . 1 . . . . . . . Energy Cannon 3 | . . 1 . 1 . . . . 1 . . . . . . Ballistic Gun 8 | . . 2 . 3 . 1 1 . . 1 . . . . . Ballistic Cannon 2 | . . . . 1 . 1 . . . . . . . . . Launcher 2 | . 1 . . . . . . . . . 1 . . . . Special Weapon 3 | . . 1 . . . . 1 . . 1 . . . . . Impact Weapon 1 | . . . . . . . . 1 . . . . . . . Slashing Weapon . | . . . . . . . . . . . . . . . . Piercing Weapon . | . . . . . . . . . . . . . . . . Special Melee Weapon . | . . . . . . . . . . . . . . . . Unidentified Prototypes 3 | . . . . 1 . . . . . 1 1 . . . . Parts Lost 61 | . 1 10 5 6 . 8 . 11 . 1 13 . 1 4 1 Power 10 | . . 2 1 1 . 1 . 3 . . 2 . . . . Propulsion 27 | . 1 5 2 4 . 4 . 5 . 1 4 . . 1 . Utility 14 | . . 2 1 1 . 1 . 2 . . 3 . 1 2 1 Weapon 10 | . . 1 1 . . 2 . 1 . . 4 . . 1 . Highest Loss Streak 9 | . 1 5 2 2 . 4 . 3 . 1 9 . 1 4 1 To Critical Strikes 1 | . . . . . . 1 . . . . . . . . . Average Backups 11 | 1 7 10 12 13 14 13 13 13 14 13 11 6 5 5 4 Power . | . 1 . . . . . . . . . . . . . . Propulsion 2 | . 4 3 1 2 2 2 1 2 3 1 . . . . . Utility 4 | . . 1 1 4 7 6 8 7 8 8 8 5 5 5 4 Weapon 3 | . 1 3 6 5 4 3 2 2 2 3 2 1 . . . Tool/Special . | . . . . . . . . . . . . . . . . Unused Backups 16 | . 2 3 1 4 . 1 . . . 1 . . 1 1 2 Power . | . . . . . . . . . . . . . . . . Propulsion 5 | . 2 1 . 1 . 1 . . . . . . . . . Utility 6 | . . . 1 . . . . . . 1 . . 1 1 2 Weapon 4 | . . 2 . 2 . . . . . . . . . . . Tool/Special 1 | . . . . 1 . . . . . . . . . . . Average Slot Usage (%) 92 | . 98 95 91 93 95 93 99 90 92 98 75 45 47 39 22 Engine 6 | . 3 12 2 4 . 6 6 . . 8 5 . . . . Core 4 | . 10 . 6 4 9 . 7 9 7 3 . . . . . Treads 12 | . . 21 24 10 9 10 21 . . . . . . . . Leg 10 | . . . 5 12 18 15 14 29 38 32 21 5 5 4 . Wheel 8 | . 28 5 11 15 14 13 . . . . . . . . . Device 4 | . . . . 4 9 9 7 11 15 13 1 . . . 5 Storage 9 | . 14 14 9 9 9 9 7 7 7 6 5 5 2 . . Processor 1 | . . . . . . . . 5 7 6 5 5 5 4 . Hackware 3 | . . . . . . . 6 2 . 12 20 27 27 25 16 Protection 9 | . 13 13 12 13 8 9 7 . . . 2 . . . . Energy Gun 5 | . 27 8 1 7 . . . . . . . . . . . Energy Cannon 3 | . . 4 6 2 9 4 . . 5 4 2 . . . . Ballistic Gun 6 | . . 12 7 5 6 9 7 2 . . 1 . . . . Ballistic Cannon 1 | . . . . . . 4 5 6 1 . . . . . . Peak Build Rating 68 | 6 12 17 26 35 35 35 49 47 39 66 68 42 42 41 19 Average Rating 27 | 4 11 14 23 29 33 32 36 34 35 60 52 40 41 36 18 On Entrance 29 | . 6 12 17 25 32 35 32 47 32 39 65 40 42 41 12 Naked Turns . | . . . . . . . . . . . . . . . . Heaviest Build 56 | 11 34 41 55 49 44 50 55 45 37 56 55 22 22 2 1 Greatest Support 79 | 26 26 40 60 60 28 60 60 50 70 79 64 55 55 55 3 Greatest Overweight (x) 4 | . 1 3 2 4 3 2 1 3 . . 1 . . . . Average Overweight (x) . | . . . . 1 1 . . . . . . . . . . Largest Inventory Capacity 15 | 8 15 15 15 15 15 15 15 15 15 15 15 15 15 5 5 Average Capacity 14 | 7 12 15 15 15 15 15 15 15 15 15 15 15 10 5 5 Most Carried 15 | 3 9 15 15 15 15 15 15 15 15 15 14 6 6 5 4 Average Carried 12 | 1 7 12 13 14 15 14 14 14 14 14 11 5 5 4 4 Final Capacity 15 | 8 15 15 15 15 15 15 15 15 15 15 15 15 5 5 5 Final Carried 15 | 3 8 15 12 15 15 15 15 15 15 14 6 5 5 5 4 Class Distribution -------------------- 43% | Mutant 32% | Bothacker-Mutant 14% | Scavenger-Mutant 5% | Subdweller-Mutant 3% | Derelict-Mutant Dominant Class ---------------- Mutant | -10/Materials Mutant | -10/Subcaves Subdweller-Mutant | -8/Materials Scavenger-Mutant | -8/Garrison Bothacker-Mutant | -8/Materials Bothacker-Mutant | -8/Garrison Bothacker-Mutant | -7/Factory Bothacker-Mutant | -7/Garrison Bothacker-Mutant | -7/Factory Bothacker-Mutant | -6/Factory Scavenger-Mutant | -6/Garrison Mutant | -5/Factory Mutant | -5/Waste Mutant | -5/Factory Mutant | -5/Extension Resources | -11 -10 -10 -8 -8 -8 -8 -7 -7 -7 -6 -6 -5 -5 -5 -5 ----------- Run | Yrd Mat Sub Mat Gar Mat Gar Fac Gar Fac Fac Gar Fac Was Fac Ext Matter Collected 3961 | 164 162 501 333 740 95 483 356 811 . 289 26 . . . 1 Remotely . | . . . . . . . . . . . . . . . . Salvage Created 5347 | . 191 313 684 1514 296 823 339 676 . 319 192 . . . . Parts 273 | . 21 25 47 72 8 34 13 27 . 12 14 . . . . Haulers Intercepted 3 | . . . 2 . 1 . . . . . . . . . . Recyclers Shooed . | . . . . . . . . . . . . . . . . Parts Field Recycled . | . . . . . . . . . . . . . . . . Retrieved Matter . | . . . . . . . . . . . . . . . . Parts Self-Destructed 9 | . . 9 . . . . . . . . . . . . . Prevented . | . . . . . . . . . . . . . . . . Kills | -11 -10 -10 -8 -8 -8 -8 -7 -7 -7 -6 -6 -5 -5 -5 -5 ------- Run | Yrd Mat Sub Mat Gar Mat Gar Fac Gar Fac Fac Gar Fac Was Fac Ext Combat Hostiles Destroyed 130 | . 8 16 17 32 4 16 6 18 . 5 8 . . . . Guns 46 | . 5 7 6 18 1 3 2 4 . . . . . . . Cannons 42 | . . 1 5 3 3 13 4 9 . 4 . . . . . AOE 39 | . 3 7 6 10 . . . 5 . . 8 . . . . Classes Destroyed 15 | . 4 2 3 2 . 2 1 . . . 1 . . . . Worker 3 | . 1 . 2 . . . . . . . . . . . . Builder 2 | . . . 1 . . . 1 . . . . . . . . Hauler 3 | . . . 2 . 1 . . . . . . . . . . Recycler 2 | . . . . . . . 1 . . 1 . . . . . Watcher 1 | . 1 . . . . . . . . . . . . . . Swarmer 35 | . 3 6 6 13 . . . 3 . . 4 . . . . Grunt 42 | . 5 . 3 6 3 4 4 13 . 1 3 . . . . Brawler 4 | . . . . 1 1 1 . 1 . . . . . . . Duelist 3 | . . . . . . 2 . . . 1 . . . . . Protector 1 | . . . . . . . . . . . 1 . . . . Sentry 18 | . . 1 6 5 . 5 1 . . . . . . . . Demolisher 1 | . . . . . . 1 . . . . . . . . . Hunter 8 | . . . 2 6 . . . . . . . . . . . Programmer 9 | . . . . 1 . 3 1 1 . 3 . . . . . Subdweller 9 | . . 9 . . . . . . . . . . . . . Best Kill Streak 8 | . 4 3 4 7 4 5 5 4 . 3 8 . . . . Combat Bots Only 8 | . 3 3 4 7 4 5 3 4 . 2 8 . . . . Max Kills in Single Turn 4 | . 2 3 3 2 1 1 2 2 . 1 4 . . . . Gunslinging . | . . . . . . . . . . . . . . . . Exploded 4 | . 2 3 3 2 . . . 2 . . 4 . . . . Melee . | . . . . . . . . . . . . . . . . Uniques/NPCs Destroyed . | . . . . . . . . . . . . . . . . Combat | -11 -10 -10 -8 -8 -8 -8 -7 -7 -7 -6 -6 -5 -5 -5 -5 -------- Run | Yrd Mat Sub Mat Gar Mat Gar Fac Gar Fac Fac Gar Fac Was Fac Ext Hostile Shots Fired 826 | . 23 63 89 116 30 97 65 112 . 22 107 . 1 69 32 Missed 227 | . 8 17 21 37 10 25 16 31 . 7 24 . . 20 11 Hits 599 | . 15 46 68 79 20 72 49 81 . 15 83 . 1 49 21 Melee 8 | . . . . 2 . 3 . 2 . . . . 1 . . Projectile 591 | . 15 46 68 77 20 69 49 79 . 15 83 . . 49 21 AOE 21 | . . 1 . . . 2 . 2 . . 16 . . . . Critical Strikes 24 | . . 1 . 3 1 6 1 6 . 1 4 . . . 1 Actively Blocked 1 | . . . . . . . . . . . 1 . . . . Damage Taken 10848 | . 239 1014 933 1177 306 1181 575 1346 . 526 2180 . 40 781 550 Core 2428 | . . 116 80 177 30 158 87 209 . 33 522 . . 492 524 Absorbed by Shields 71 | . . . . . . 15 . 56 . . . . . . . Redirected to Shielding 78 | . . . . . . . . . . . 78 . . . . Regen/Repaired (Parts) 274 | . 108 . 166 . . . . . . . . . . . . Core Remaining (%) 52 | 100 . 53 . . . 19 . . 57 . 34 . . . . Volleys Fired 554 | 1 19 70 48 178 21 84 21 56 . 49 7 . . . . Largest 2 | 2 2 2 2 2 2 2 2 2 . 2 2 . . . . Hottest 130 | 80 130 130 125 125 90 90 72 72 . 95 75 . . . . Shots Fired 861 | 2 34 112 88 253 38 150 38 80 . 57 9 . . . . Gun 547 | 2 32 98 62 189 21 81 19 34 . 7 2 . . . . Cannon 264 | . . 7 23 58 17 69 17 33 . 39 1 . . . . Launcher 27 | . 2 7 3 6 . . . 4 . . 5 . . . . Special 23 | . . . . . . . 2 9 . 11 1 . . . . Kinetic 432 | . . 42 57 90 21 115 36 62 . 7 2 . . . . Thermal 360 | 1 32 63 23 144 17 35 . 5 . 39 1 . . . . Explosive 27 | . 2 7 3 6 . . . 4 . . 5 . . . . Electromagnetic 19 | 1 . . 5 13 . . . . . . . . . . . Robot Hit Streak 42 | 1 14 18 10 42 14 15 7 14 . 5 8 . . . . Robot Miss Streak 7 | 1 7 5 5 4 2 4 1 7 . 2 2 . . . . Penetration Max 1 | . . . . . . . 1 . . . . . . . . Secondary Targets 3 | . 1 . 1 1 . . . . . . . . . . . Max Gunslinging Chain 1 | . 1 . 1 1 . . . . . . . . . . . Shots Hit Robots 572 | 1 31 70 55 158 24 97 28 73 . 27 7 . . 1 . Core Hits 368 | . 38 38 27 76 9 31 14 81 . 8 45 . . . 1 Critical Kills 4 | . . 1 1 1 . . . . . 1 . . . . . Critical Parts Destroyed 2 | . . . . 1 . . . 1 . . . . . . . Critical Strikes 12 | . . 1 1 7 . . 1 1 . 1 . . . . . Burn 5 | . . . . 5 . . . . . . . . . . . Meltdown 3 | . . 1 . 1 . . . . . 1 . . . . . Destroy 2 | . . . 1 1 . . . . . . . . . . . Blast 1 | . . . . . . . 1 . . . . . . . . Smash 1 | . . . . . . . . 1 . . . . . . . Melee Attacks 51 | . . . . . . . . 30 . 12 . . . 9 . Impact 51 | . . . . . . . . 30 . 12 . . . 9 . Slashing . | . . . . . . . . . . . . . . . . Piercing . | . . . . . . . . . . . . . . . . Sneak Attacks . | . . . . . . . . . . . . . . . . Combat Hostiles . | . . . . . . . . . . . . . . . . Follow-up Attacks . | . . . . . . . . . . . . . . . . Damage Inflicted 14889 | 15 524 1501 1551 3726 580 2474 690 2032 . 584 1181 2 . 20 9 Guns 5897 | 15 410 729 873 1817 205 949 317 465 . 93 24 . . . . Cannons 4949 | . . 57 341 1089 375 1525 373 700 . 463 26 . . . . Explosions 3460 | . 114 715 324 820 . . . 356 . . 1131 . . . . Melee 531 | . . . . . . . . 511 . . . . . 20 . Ramming 52 | . . . 13 . . . . . . 28 . 2 . . 9 Kinetic 5651 | . . 201 794 733 205 1746 690 1165 . 93 24 . . . . Thermal 4884 | . 410 585 341 1956 375 728 . . . 463 26 . . . . Explosive 3460 | . 114 715 324 820 . . . 356 . . 1131 . . . . Electromagnetic 311 | 15 . . 79 217 . . . . . . . . . . . Impact 531 | . . . . . . . . 511 . . . . . 20 . Slashing . | . . . . . . . . . . . . . . . . Piercing . | . . . . . . . . . . . . . . . . Highest Corruption 11 | . 3 3 . . . 2 . 1 1 5 5 . 5 11 11 Average Corruption 3 | . 2 3 . . . 1 . 1 1 3 5 . 5 11 11 Corruption Purged . | . . . . . . . . . . . . . . . . Corruption Blocked . | . . . . . . . . . . . . . . . . Effects 108 | . 12 65 . . . 2 . 2 . 7 5 . 3 8 4 Message Errors 32 | . 4 20 . . . . . 1 . 2 1 . . 3 1 Matter Fused 22 | . 3 13 . . . 1 . . . 1 1 . . 1 2 Heat Flow Errors 16 | . 1 10 . . . . . 1 . . . . 2 2 . Energy Discharges 10 | . 1 6 . . . . . . . 1 1 . 1 . . Parts Rejected 2 | . . 1 . . . . . . . . 1 . . . . Parts Fused 2 | . . 2 . . . . . . . . . . . . . Data Loss (minor) 9 | . . 7 . . . . . . . 1 1 . . . . Data Loss (major) 3 | . 1 1 . . . . . . . 1 . . . . . Misfires 6 | . 1 3 . . . 1 . . . 1 . . . . . Alerts 3 | . 1 2 . . . . . . . . . . . . . Misdirections 3 | . . . . . . . . . . . . . . 2 1 Overload Shots . | . . . . . . . . . . . . . . . . Overflow Damage 278 | . 12 . 28 77 . 36 . 63 . 51 11 . . . . Projectiles 117 | . . . . 19 . 36 . . . 51 11 . . . . Explosions 98 | . 12 . 28 58 . . . . . . . . . . . Melee 63 | . . . . . . . . 63 . . . . . . . Knockbacks 28 | . . . . 1 . 3 4 19 . . . . . . 1 Impact 3 | . . . . . . . . 2 . . . . . . 1 Kinetic 23 | . . . . 1 . 3 4 15 . . . . . . . Secondary 2 | . . . . . . . . 2 . . . . . . . Self-Inflicted Damage 248 | . 49 . 28 70 . . . 7 . . 91 . . . 3 Shots 12 | . 1 . 2 4 . . . 1 . . 4 . . . . Rammed 7 | . . . 2 . . . . . . . . . . . 5 Targets Rammed 11 | . . . 3 . . . . . . 2 . 1 . . 5 Kicked 3 | . . . . . . . . . . 2 . 1 . . . Crushed 1 | . . . 1 . . . . . . . . . . . . Highest Temperature 420 | 12 420 221 404 204 117 88 21 113 . 120 16 . 130 171 . Average Temperature 64 | 9 120 61 116 41 64 24 8 13 . 38 12 . 72 83 . Received Heat Transfer 2458 | . 93 129 261 225 198 297 258 582 . 18 313 . . 18 66 Effects 2 | . 1 . 1 . . . . . . . . . . . . Matter Decay 1 | . . . 1 . . . . . . . . . . . . Short Circuit 1 | . 1 . . . . . . . . . . . . . . Siege Activations . | . . . . . . . . . . . . . . . . Martial Activations . | . . . . . . . . . . . . . . . . Shielding Activations . | . . . . . . . . . . . . . . . . Robots Disrupted . | . . . . . . . . . . . . . . . . Combat Hostiles . | . . . . . . . . . . . . . . . . Robots Corrupted 2 | . . . . . . . . 2 . . . . . . . Combat Hostiles . | . . . . . . . . . . . . . . . . Parts Fried 1 | . . . 1 . . . . . . . . . . . . Impact Corruptions 2 | . . . . . . . . 2 . . . . . . . Robots Melted 5 | . . 1 . 3 . . . . . 1 . . . . . Combat Hostiles 3 | . . 1 . 1 . . . . . 1 . . . . . Parts Melted 14 | . . 3 . 7 2 . . . . 2 . . . . . Heat Transferred 7321 | . 515 948 481 3231 518 999 . . . 592 37 . . . . Parts Sabotaged . | . . . . . . . . . . . . . . . . Parts Stolen . | . . . . . . . . . . . . . . . . Parts Stripped . | . . . . . . . . . . . . . . . . Power Chain Reactions . | . . . . . . . . . . . . . . . . Alert | -11 -10 -10 -8 -8 -8 -8 -7 -7 -7 -6 -6 -5 -5 -5 -5 ------- Run | Yrd Mat Sub Mat Gar Mat Gar Fac Gar Fac Fac Gar Fac Was Fac Ext Maximum Alert Level 4 | . . . . 4 2 3 2 3 2 1 . . . . . Low Security (%) 48 | 100 100 . 100 17 . . 2 . . 88 100 100 100 100 100 Level 1 18 | . . . . 15 . . 90 30 72 11 . . . . . Level 2 22 | . . . . 30 100 68 7 54 27 . . . . . . Level 3 8 | . . . . 24 . 31 . 14 . . . . . . . Level 4 2 | . . . . 12 . . . . . . . . . . . Level 5 . | . . . . . . . . . . . . . . . . High Security . | . . . . . . . . . . . . . . . . Max Security . | . . . . . . . . . . . . . . . . Peak Influence 1186 | . 82 . 179 1186 656 808 424 750 429 246 163 64 18 15 7 Initial 577 | . . . . 62 577 413 424 208 393 175 . 64 18 . 7 Average 295 | . 21 . 75 583 582 611 303 515 390 50 43 59 4 1 . Influence Increases 4286 | . 263 175 545 1184 159 475 224 672 36 325 203 . . 25 . Destroy 0b10 Robot/C 2500 | . 160 140 340 640 80 320 120 400 . 160 140 . . . . Destroy 0b10 Robot/NC 120 | . 10 . 25 25 5 15 10 15 5 5 5 . . . . Destroy Leader 358 | . 32 20 114 40 22 10 30 40 . 50 . . . . . Allied During Kill 23 | . . . . . . . . 12 1 10 . . . . . Successful Hack 182 | . 30 . 27 14 21 . . 28 30 32 . . . . . Disable Machine 135 | . . . . . 30 . 45 15 . 45 . . . . . Anti-Garrison Action 400 | . . . . 250 . 100 . 50 . . . . . . . Destroy Structure 418 | . 16 . 39 170 1 15 4 112 . 23 28 . . 10 . Partial Spotted 15 | . . . . . . . 15 . . . . . . . . Lose Combat Pursuer 135 | . 15 15 . 45 . 15 . . . . 30 . . 15 . Influence Decreases 4286 | . 263 175 449 94 709 303 734 220 427 684 80 69 54 10 15 Entered New Map 1984 | . . . . 34 609 223 384 90 357 184 . 59 36 . 8 Time Decay 1660 | . 253 135 407 . 100 . 350 . 70 300 . 10 18 10 7 Lost Part 432 | . 10 40 42 60 . 80 . 110 . 10 80 . . . . Lost Ally 60 | . . . . . . . . 20 . 40 . . . . . Purge Threat 150 | . . . . . . . . . . 150 . . . . . Squads Dispatched 10 | . . . 2 . 1 . 2 . . 4 . . . 1 . Investigation 3 | . . . 1 . . . . . . 1 . . . 1 . Extermination 3 | . . . . . . . 1 . . 2 . . . . . Reinforcement 3 | . . . 1 . . . 1 . . 1 . . . . . Assault . | . . . . . . . . . . . . . . . . Garrison 1 | . . . . . 1 . . . . . . . . . . Intercept . | . . . . . . . . . . . . . . . . Searches Triggered . | . . . . . . . . . . . . . . . . Construction Impeded 1 | . . . . . . . . . . 1 . . . . . Haulers Reinforced 1 | . . . . . . . 1 . . . . . . . . Active Scanning Responses . | . . . . . . . . . . . . . . . . Cargo Convoy Interrupts . | . . . . . . . . . . . . . . . . Stealth | -11 -10 -10 -8 -8 -8 -8 -7 -7 -7 -6 -6 -5 -5 -5 -5 --------- Run | Yrd Mat Sub Mat Gar Mat Gar Fac Gar Fac Fac Gar Fac Was Fac Ext Distress Signals 7 | . 2 . 1 1 2 . . . . . . . . . 1 Communications Jammed . | . . . . . . . . . . . . . . . . Distress Signals . | . . . . . . . . . . . . . . . . Times Spotted 203 | . 18 19 25 32 7 17 12 25 1 13 14 . 6 5 9 Peak Tracking Total 14 | . 5 3 5 5 4 5 5 4 1 3 14 . 6 5 8 Tactical Retreats 9 | . 1 2 . 3 . 1 . . . . 1 . . 1 . Traps | -11 -10 -10 -8 -8 -8 -8 -7 -7 -7 -6 -6 -5 -5 -5 -5 ------- Run | Yrd Mat Sub Mat Gar Mat Gar Fac Gar Fac Fac Gar Fac Was Fac Ext Traps Triggered 22 | . 2 1 2 6 . 5 . 3 . 2 . 1 . . . Indirectly . | . . . . . . . . . . . . . . . . Trap Hack Attempts . | . . . . . . . . . . . . . . . . Triggered . | . . . . . . . . . . . . . . . . Disarmed . | . . . . . . . . . . . . . . . . Reprogrammed . | . . . . . . . . . . . . . . . . Reused . | . . . . . . . . . . . . . . . . Traps Extracted . | . . . . . . . . . . . . . . . . Installed . | . . . . . . . . . . . . . . . . Triggered . | . . . . . . . . . . . . . . . . Most Traps Carried 1 | . . 1 . . . . . . . . . . . . . Machines | -11 -10 -10 -8 -8 -8 -8 -7 -7 -7 -6 -6 -5 -5 -5 -5 ---------- Run | Yrd Mat Sub Mat Gar Mat Gar Fac Gar Fac Fac Gar Fac Was Fac Ext Machines Disabled 15 | . . 1 . 2 2 2 3 2 . 3 . . . . . Max in Single Turn 1 | . . 1 . 1 1 1 1 1 . 1 . . . . . Garrison Access 1 | . . . . . . . . . . . . . . 1 . Garrison Relay 4 | . . . . 2 . 1 . 1 . . . . . . . Machines Repaired . | . . . . . . . . . . . . . . . . Machines Dismantled . | . . . . . . . . . . . . . . . . Machines Sabotaged . | . . . . . . . . . . . . . . . . Overloaded Fab Kills . | . . . . . . . . . . . . . . . . Hacking | -11 -10 -10 -8 -8 -8 -8 -7 -7 -7 -6 -6 -5 -5 -5 -5 --------- Run | Yrd Mat Sub Mat Gar Mat Gar Fac Gar Fac Fac Gar Fac Was Fac Ext Machines Accessed 50 | . 8 2 10 2 4 1 5 4 1 10 . . . 3 . Terminals 32 | . 6 . 6 2 3 1 2 4 1 6 . . . 1 . Fabricators 2 | . . . . . . . . . . 1 . . . 1 . Repair Stations 3 | . 1 . 1 . . . . . . 1 . . . . . Recycling Units 5 | . 1 . 1 . . . 2 . . 1 . . . . . Scanalyzers 1 | . . . 1 . . . . . . . . . . . . Garrison Access 5 | . . . 1 . 1 . 1 . . 1 . . . 1 . Total Hacks 122 | . 23 5 27 4 12 2 9 10 4 21 . . . 5 . Successful 60 | . 13 5 15 1 10 . 4 2 2 7 . . . 1 . Failed 62 | . 10 . 12 3 2 2 5 8 2 14 . . . 4 . Catastrophic 10 | . . . 1 . . 2 1 2 . 4 . . . . . Database Lockouts . | . . . . . . . . . . . . . . . . Manual 60 | . 15 . 13 . 8 . 5 1 4 12 . . . 2 . Terminals 82 | . 17 . 14 4 10 2 4 10 4 15 . . . 2 . Fabricators 3 | . . . . . . . . . . 1 . . . 2 . Repair Stations 12 | . 5 . 5 . . . . . . 2 . . . . . Recycling Units 9 | . 1 . 3 . . . 3 . . 2 . . . . . Scanalyzers 4 | . . . 4 . . . . . . . . . . . . Garrison Access 7 | . . . 1 . 2 . 2 . . 1 . . . 1 . Terminal Hacks 19 | . 2 5 1 1 3 . 1 2 . 4 . . . . . Record 5 | . . 4 . . . . 1 . . . . . . . . Robot Analysis 1 | . 1 . . . . . . . . . . . . . . Branch Access Points 1 | . . . . . . . . . . 1 . . . . . Emergency Access Points 2 | . . . . 1 . . . 1 . . . . . . . Terminal Index 3 | . . . . . 1 . . . . 2 . . . . . Hauler Manifests 4 | . 1 . 1 . 1 . . . . 1 . . . . . Registered Prototypes 1 | . . . . . 1 . . . . . . . . . . Patrol Navigation 1 | . . . . . . . . 1 . . . . . . . Proto ID Catalog 1 | . . 1 . . . . . . . . . . . . . Fabricator Hacks . | . . . . . . . . . . . . . . . . Repair Station Hacks 7 | . 4 . 2 . . . . . . 1 . . . . . Scan Component 4 | . 2 . 1 . . . . . . 1 . . . . . Repair 3 | . 2 . 1 . . . . . . . . . . . . Recycling Unit Hacks 2 | . 1 . 1 . . . . . . . . . . . . Report Inventory 2 | . 1 . 1 . . . . . . . . . . . . Scanalyzer 3 | . . . 3 . . . . . . . . . . . . Insert Component 2 | . . . 2 . . . . . . . . . . . . Analyze 1 | . . . 1 . . . . . . . . . . . . Garrison Access Hacks 7 | . . . 1 . 2 . 2 . . 1 . . . 1 . Unlock Access 4 | . . . 1 . 1 . 1 . . 1 . . . . . Seal Access 1 | . . . . . . . . . . . . . . 1 . Coupler Status 2 | . . . . . 1 . 1 . . . . . . . . Unauthorized Hacks 22 | . 6 . 7 . 5 . 1 . 2 1 . . . . . Terminals 20 | . 6 . 5 . 5 . 1 . 2 1 . . . . . Botnet 2 | . . . . . 2 . . . . . . . . . . Operators 2 | . 1 . . . . . . . 1 . . . . . . Skim 16 | . 5 . 5 . 3 . 1 . 1 1 . . . . . Fabricators . | . . . . . . . . . . . . . . . . Repair Stations . | . . . . . . . . . . . . . . . . Recycling Units 2 | . . . 2 . . . . . . . . . . . . Monitor 1 | . . . 1 . . . . . . . . . . . . Recyclers 1 | . . . 1 . . . . . . . . . . . . Scanalyzers . | . . . . . . . . . . . . . . . . Garrison Access . | . . . . . . . . . . . . . . . . Data Cores Recovered 1 | . . . . . . . . . 1 . . . . . . Used 1 | . . . . . . . . . 1 . . . . . . Hacking Detections 43 | . 7 . 8 2 3 1 5 4 1 10 . . . 2 . Full Trace Events 4 | . . . . 1 . 1 . . . 1 . . . 1 . Feedback Events . | . . . . . . . . . . . . . . . . Feedback Blocked . | . . . . . . . . . . . . . . . . Robot Schematics Acquired . | . . . . . . . . . . . . . . . . Robots Built . | . . . . . . . . . . . . . . . . Authchips . | . . . . . . . . . . . . . . . . Time . | . . . . . . . . . . . . . . . . Total Robot Build Rating . | . . . . . . . . . . . . . . . . Part Schematics Acquired 1 | . . . 1 . . . . . . . . . . . . Parts Built . | . . . . . . . . . . . . . . . . Authchips . | . . . . . . . . . . . . . . . . Time . | . . . . . . . . . . . . . . . . Total Part Build Rating . | . . . . . . . . . . . . . . . . Parts Repaired 3 | . 2 . 1 . . . . . . . . . . . . Time 102 | . 58 . 44 . . . . . . . . . . . . Parts Recycled . | . . . . . . . . . . . . . . . . Recycled Matter . | . . . . . . . . . . . . . . . . Retrieved Matter . | . . . . . . . . . . . . . . . . Retrieved Components . | . . . . . . . . . . . . . . . . Parts Scanalyzed 1 | . . . 1 . . . . . . . . . . . . Part Schematics Acquired 1 | . . . 1 . . . . . . . . . . . . Parts Damaged . | . . . . . . . . . . . . . . . . Bothacking | -11 -10 -10 -8 -8 -8 -8 -7 -7 -7 -6 -6 -5 -5 -5 -5 ------------ Run | Yrd Mat Sub Mat Gar Mat Gar Fac Gar Fac Fac Gar Fac Was Fac Ext Used RIF Installer 3 | . . . . 1 . 1 . 1 . . . . . . . Robot Detection 1 | . . . . . . 1 . . . . . . . . . Watcher Feeds 1 | . . . . . . . . 1 . . . . . . . Robots Hacked 14 | . . . . . . . 1 5 . 8 . . . . . Non-combat 7 | . . . . . . . 1 . . 6 . . . . . Combat 7 | . . . . . . . . 5 . 2 . . . . . Robot Hacks Applied 16 | . . . . . . . 1 6 . 9 . . . . . parse_system 2 | . . . . . . . . 1 . 1 . . . . . find_chute 2 | . . . . . . . 1 . . 1 . . . . . ignore_repairs 3 | . . . . . . . . . . 3 . . . . . purge_threat 1 | . . . . . . . . . . 1 . . . . . block_reporting 1 | . . . . . . . . . . 1 . . . . . map_route 1 | . . . . . . . . . . 1 . . . . . overload_power 1 | . . . . . . . . 1 . . . . . . . amplify_resonance 4 | . . . . . . . . 3 . 1 . . . . . overwrite_iff 1 | . . . . . . . . 1 . . . . . . . Relay Couplers Released 21 | . . . . 11 . 5 . 5 . . . . . . . Machine Destruction 18 | . . . . 8 . 5 . 5 . . . . . . . Programmers 3 | . . . . 3 . . . . . . . . . . . Attached 8 | . . . . . . . 1 1 . 2 4 . . . . Fabnet Peak Effective % . | . . . . . . . . . . . . . . . . Robots Rewired . | . . . . . . . . . . . . . . . . Allies Hacked . | . . . . . . . . . . . . . . . . Hacks Repelled . | . . . . . . . . . . . . . . . . Allies | -11 -10 -10 -8 -8 -8 -8 -7 -7 -7 -6 -6 -5 -5 -5 -5 -------- Run | Yrd Mat Sub Mat Gar Mat Gar Fac Gar Fac Fac Gar Fac Was Fac Ext Total Allies 3 | . . . . . . . . 3 . . . . . . . Largest Group 2 | . . . . . . . . 2 2 2 . . . . . Highest-Rated Group 157 | . . . . . . . . 157 157 157 . . . . . Highest-Rated Ally 95 | . . . . . . . . 95 95 95 . . . . . Total Orders . | . . . . . . . . . . . . . . . . Ally Attacks 21 | . . . . . . . . 10 1 10 . . . . . Total Damage 1013 | . . . . . . . . 434 43 536 . . . . . Kills 7 | . . . . . . . . 3 1 3 . . . . . Allies Corrupted . | . . . . . . . . . . . . . . . . Allies Melted . | . . . . . . . . . . . . . . . . Intel | -11 -10 -10 -8 -8 -8 -8 -7 -7 -7 -6 -6 -5 -5 -5 -5 ------- Run | Yrd Mat Sub Mat Gar Mat Gar Fac Gar Fac Fac Gar Fac Was Fac Ext Active Infowar (turns) 2 | . . . . . 2 . . . . . . . . . . Terrain 2 | . . . . . 2 . . . . . . . . . . Robot Analysis Total 1 | . 1 . . . . . . . . . . . . . . Derelict Logs Recovered 3 | . . 3 . . . . . . . . . . . . . Drone Launches . | . . . . . . . . . . . . . . . . Drone Recoveries . | . . . . . . . . . . . . . . . . Exploration | -11 -10 -10 -8 -8 -8 -8 -7 -7 -7 -6 -6 -5 -5 -5 -5 ------------- Run | Yrd Mat Sub Mat Gar Mat Gar Fac Gar Fac Fac Gar Fac Was Fac Ext Turns Passed 11546 | 54 1019 3335 1078 1473 204 704 790 1083 158 947 163 34 115 254 135 Spaces Moved 7086 | 45 603 1917 610 777 121 329 487 725 124 652 97 25 88 228 258 Core 347 | 3 . . . . . . . . . . . . . 86 258 Treads 2225 | . . 1349 255 151 . 61 409 . . . . . . . . Legs 1693 | . . . . . . . . 565 124 652 97 25 88 142 . Wheels 2583 | 42 603 568 355 626 121 268 . . . . . . . . . Hover 238 | . . . . . . . 78 160 . . . . . . . Flight . | . . . . . . . . . . . . . . . . Fastest Speed 48 | 50 90 95 107 90 110 110 48 48 120 90 100 130 130 50 50 Average Speed 127 | 88 93 161 139 124 120 130 142 108 120 103 112 130 130 99 50 Slowest Speed 320 | 100 105 240 240 160 135 320 240 300 120 120 185 130 130 130 50 Overloaded Moves . | . . . . . . . . . . . . . . . . Propulsion Burnouts . | . . . . . . . . . . . . . . . . Robots Hopped . | . . . . . . . . . . . . . . . . Potential Cave-ins 2 | . . . 2 . . . . . . . . . . . . Cave-ins Triggered 1 | . . . . . . . . . . 1 . . . . . Exploration Rate (%) 41 | 4 89 95 48 74 22 42 13 87 4 25 33 2 81 6 31 Regions Visited 15 Branch Regions 2 Pre-discovered Areas 4 | . . 4 . . . . . . . . . . . . . Known Exits Taken 5 | . . 1 1 . 1 . 1 . . 1 . . . . . Unknown Exits Taken 4 | 1 1 . . . . . . . 1 . . . . 1 . Scrap Searched 14 | . . 14 . . . . . . . . . . . . . Spaces Dug 22 | . . . 5 . . . . . . 12 . . . 5 . Terrain Destroyed 197 | . 18 36 57 17 1 . 2 23 . 13 25 . . 5 . Melee 13 | . . . . . . . . . . 8 . . . 5 . Projectile 28 | . . 2 18 . 1 . 2 . . 5 . . . . . AOE 156 | . 18 34 39 17 . . . 23 . . 25 . . . . Terrain Rammed . | . . . . . . . . . . . . . . . . Walls Destroyed . | . . . . . . . . . . . . . . . . Machines Disabled . | . . . . . . . . . . . . . . . . Actions | -11 -10 -10 -8 -8 -8 -8 -7 -7 -7 -6 -6 -5 -5 -5 -5 --------- Run | Yrd Mat Sub Mat Gar Mat Gar Fac Gar Fac Fac Gar Fac Was Fac Ext Total 8740 | 54 1022 2047 747 1060 148 481 544 888 135 862 135 27 88 238 264 Wait 622 | . 375 9 50 20 . 10 10 27 . 103 18 . . . . Move 7075 | 44 602 1916 610 776 121 328 487 724 123 651 96 25 87 227 258 Hop . | . . . . . . . . . . . . . . . . Pick Up 70 | 3 7 18 9 13 . 4 3 3 1 6 1 . 1 1 . Fast Attach 72 | 6 6 8 4 13 3 6 5 10 1 10 . . . . . Attach 42 | . 1 8 8 4 . 3 3 3 . 3 7 1 . . 1 Detach 7 | . . 3 1 1 . . 1 1 . . . . . . . Swap 74 | . 5 5 6 13 1 2 7 14 4 12 5 . . . . Drop 80 | . 7 10 5 18 2 4 7 5 6 14 1 . . 1 . Fire 554 | 1 19 70 48 178 21 84 21 56 . 49 7 . . . . Melee 51 | . . . . . . . . 30 . 12 . . . 9 . Ram 5 | . . . . . . . . . . . . . . . 5 Kick 3 | . . . . . . . . . . 2 . 1 . . . Crush 3 | . . . 3 . . . . . . . . . . . . Escape Stasis 79 | . . . . 24 . 40 . 15 . . . . . . . Rewire . | . . . . . . . . . . . . . . . . Trap . | . . . . . . . . . . . . . . . . Miscellaneous 3 | . . . 3 . . . . . . . . . . . . Route ------- -11/Scrapyard -10/Materials (discovered 5 exits: [*Mat x3] / [*Min] / *Sub) -10/Subcaves (discovered 3 exits: *Mat x2 / Rec) -8/Materials (discovered 3 exits: *Fac x2 / Gar) -8/Garrison (discovered 3 exits: *Mat x3) -8/Materials -8/Garrison -7/Factory -7/Garrison (discovered 4 exits: *Fac x4) -7/Factory -6/Factory (discovered 4 exits: [*Fac] / *Low x2 / Gar) -6/Garrison -5/Factory -5/Waste -5/Factory -5/Extension History --------- Turn | Location | Event 15 | -11/Scrapyard | Discovered new exit (range 16) 55 | -11/Scrapyard | Entered Materials 173 | -10/Materials | Discovered new exit (range 13) 313 | -10/Materials | Build established: Mutant 396 | -10/Materials | Discovered new exit (range 12) 558 | -10/Materials | Repaired Lgt. Armor Plating 593 | -10/Materials | Repaired Spread Laser 598 | -10/Materials | Discovered new exit (range 16) 678 | -10/Materials | Discovered new exit (range 9) 724 | -10/Materials | Discovered new exit (range 15) 921 | -10/Materials | Learned 4 Subcaves zone layouts 947 | -10/Materials | Learned Storage trap positions 989 | -10/Materials | Learned location of 2 exits from Subcaves 1024 | -10/Materials | Learned 4 Recycling zone layouts 1069 | -10/Materials | Learned location of 1 exit from Storage 1074 | -10/Materials | Entered Subcaves 1075 | -10/Subcaves | Identified exit to Materials 1076 | -10/Subcaves | Identified exit to Recycling 1081 | -10/Subcaves | A swath of the cavern ceiling suddenly collapsed 1373 | -10/Subcaves | Lost 5 parts (2p2u1w) 1488 | -10/Subcaves | Shifting Twisted Machinery released Mak. Light Armor Plating 1529 | -10/Subcaves | Disturbed a concealed Subdweller 1646 | -10/Subcaves | Learned location of Zion (-7) 1646 | -10/Subcaves | Met a Zionite searching for "candidates" 2006 | -10/Subcaves | A swath of the cavern ceiling suddenly collapsed 2043 | -10/Subcaves | Learned location of 1 exit from Materials 2084 | -10/Subcaves | Visited 4L-MR0's lab 2100 | -10/Subcaves | Found Cargo Legs 3031 | -10/Subcaves | Shifting Twisted Machinery released Sub. Machine Gun 3489 | -10/Subcaves | Visited Clippyterm 3496 | -10/Subcaves | Learned location of Extension (-5) 3835 | -10/Subcaves | Shifting Twisted Machinery released Hvy. Riot Gun 3837 | -10/Subcaves | Shifting Twisted Machinery released Mak. Kinetic Plating 4409 | -10/Subcaves | Entered Materials 4409 | -8/Materials | Evolved 4 slots: Propulsion x3, Utility x1 4410 | -8/Materials | Identified exit to Factory 4705 | -8/Materials | Build established: Subdweller-Mutant 5058 | -8/Materials | Discovered exit to Factory (range 16) 5129 | -8/Materials | Repaired Mak. Light Armor Plating 5271 | -8/Materials | Build established: Scavenger-Mutant 5487 | -8/Materials | Identified exit to Garrison 5487 | -8/Materials | Entered Garrison 5488 | -8/Garrison | Identified exit to Materials 5617 | -8/Garrison | Triggered checkpoint 5633 | -8/Garrison | Garrison Relay disabled 5664 | -8/Garrison | Build established: Derelict-Mutant 5736 | -8/Garrison | Triggered checkpoint 5741 | -8/Garrison | Triggered checkpoint 5770 | -8/Garrison | Destroyed 7 combat bots 6114 | -8/Garrison | Build established: Scavenger-Mutant 6347 | -8/Garrison | Installed Relay Interface Framework 6767 | -8/Garrison | Triggered checkpoint 6776 | -8/Garrison | Garrison Relay disabled 6960 | -8/Garrison | Entered Materials 7085 | -8/Materials | Garrison activated, responded to threat 7124 | -8/Materials | Core integrity fell below 50% 7164 | -8/Materials | Identified exit to Garrison 7164 | -8/Materials | Entered Garrison 7219 | -8/Garrison | Build established: Bothacker-Mutant 7416 | -8/Garrison | Triggered checkpoint 7443 | -8/Garrison | Triggered checkpoint 7490 | -8/Garrison | Discovered exit to Factory (range 10) 7574 | -8/Garrison | Lost 3 parts (1n1u1w) 7642 | -8/Garrison | Expanded RIF knowledge: Robot Detection 7692 | -8/Garrison | Core integrity fell below 20% 7728 | -8/Garrison | Lost 4 parts (3n1w) 7826 | -8/Garrison | Garrison Relay disabled 7868 | -8/Garrison | Entered Factory 7868 | -7/Factory | Evolved 2 slots: Power x1, Utility x1 8620 | -7/Factory | Found Prototype Launcher 8658 | -7/Factory | Identified exit to Garrison 8658 | -7/Factory | Entered Garrison 8690 | -7/Garrison | Triggered checkpoint 8800 | -7/Garrison | Triggered checkpoint 8810 | -7/Garrison | Triggered checkpoint 8948 | -7/Garrison | Triggered checkpoint 8987 | -7/Garrison | Lost 3 parts (1p1n1u) 8987 | -7/Garrison | Discovered new exit (range 5) 9060 | -7/Garrison | Discovered new exit (range 10) 9088 | -7/Garrison | Triggered checkpoint 9137 | -7/Garrison | Lost 3 parts (2p1w) 9160 | -7/Garrison | Garrison Relay disabled 9355 | -7/Garrison | Expanded RIF knowledge: Watcher Feeds 9446 | -7/Garrison | Discovered new exit (range 10) 9450 | -7/Garrison | Found embedded Infiltrators 9546 | -7/Garrison | Triggered checkpoint 9646 | -7/Garrison | Discovered new exit (range 15) 9694 | -7/Garrison | Triggered checkpoint 9741 | -7/Garrison | Entered Factory 9741 | -7/Factory | Accompanied by 2 allies 9891 | -7/Factory | Discovered new exit (range 6) 9899 | -7/Factory | Entered another Factory area 9899 | -6/Factory | Accompanied by 2 allies 9899 | -6/Factory | Evolved 2 slots: Utility x2 9916 | -6/Factory | Identified exit to Lower Caves 10438 | -6/Factory | Discovered new exit (range 24) 10592 | -6/Factory | Spotted B-75 Beast 10692 | -6/Factory | Crushed by falling debris 10771 | -6/Factory | Identified exit to Garrison 10846 | -6/Factory | Entered Garrison 10857 | -6/Garrison | Spotted B-75 Beast 10861 | -6/Garrison | Spotted B-86 Titan 10905 | -6/Garrison | Lost 4 parts (1p1n1u1w) 10915 | -6/Garrison | Identified Rocket Array 10946 | -6/Garrison | Triggered checkpoint 10952 | -6/Garrison | Triggered checkpoint 10975 | -6/Garrison | Attached Cargo Legs, gained temporary slots: Utility x2 10976 | -6/Garrison | Core integrity fell below 50% 10987 | -6/Garrison | Destroyed 8 combat bots 10998 | -6/Garrison | Discovered new exit (range 9) 11009 | -6/Garrison | Entered Factory 11009 | -5/Factory | Evolved 2 slots: Utility x1, Weapon x1 11025 | -5/Factory | Lost 9 parts (1p3n2u3w) 11043 | -5/Factory | Sucked down chute 11043 | -5/Factory | Entered Waste 11058 | -5/Waste | EMP discharged 11078 | -5/Waste | Spotted C-40 Crusher 11085 | -5/Waste | Spotted C-40 Crusher 11087 | -5/Waste | Spotted C-40 Crusher 11087 | -5/Waste | Spotted C-40 Crusher 11090 | -5/Waste | Spotted C-40 Crusher 11092 | -5/Waste | Spotted C-40 Crusher 11105 | -5/Waste | Crushed by Compactor (1 part destroyed) 11146 | -5/Waste | Discovered new exit (range 10) 11158 | -5/Waste | EMP discharged 11158 | -5/Waste | System corruption reached 10% 11158 | -5/Waste | Entered Factory 11249 | -5/Factory | Build established: Mutant 11406 | -5/Factory | Discovered new exit (range 13) 11412 | -5/Factory | Entered Extension 11418 | -5/Extension | Lost 4 parts (1n2u1w) 11530 | -5/Extension | Spotted B-75 Beast 11534 | -5/Extension | Spotted B-75 Beast 11535 | -5/Extension | Core integrity fell below 50% 11542 | -5/Extension | Core integrity fell below 20% 11547 | -5/Extension | Destroyed by Y-64 Sentinel with KE Penetrator Last Messages --------------- 11444_ R-10 Processor knocked back. 11445_ Slammed into R-10 Processor. 11466_ System corrupted: Matter fused (-8). 11475_ >> Watcher Feeds: Established visual feed link with W-25 Informer. 11476_ A-15 Conveyor enters Transfer Station. 11482_ U-05 Engineer enters Transfer Station. 11493_ W-25 Informer sends out distress signal. 11496_ X=Z:MFIEFDV3:H 11513_ System corrupted: Matter fused (-6). 11521_ >> Watcher Feeds: Feed link from W-25 Informer lost. 11534_ Penetrated by Slug. 11535_ Relay Coupler [Behemoth] destroyed. 11536_ Penetrated by Slug. 11538_ Door Terminal disabled. 11541_ Penetrated by Slug. 11544_ Knocked back. 11544_ Acquired 1 matter. 11544_ B-75 Beast suffers critical hit (Burn). 11544_ Slug penetrates Wall. 11546_ Penetrated by Slug. Map ----- +----------------------------------------------------+ | ?????????????????????????????????????????????????? | | ?????????????????????????????????????????????????? | | ?????????????????????????????????????????????????? | | ?????????????????????????????????????????????????? | | ?????????????????????????????????????????????????? | | ?????????????????????????????????????????????????? | | ?????????????????????????????????????????????????? | | ?????????????????????????????????????????????????? | | ?????????????????????????????????????????????????? | | ?????????????????????????????????????????????????? | | ?????????????????????????????????????????????????? | | ??????????????# ?????????????????????????????????? | | ???? #????????# ?????????????????????????????????? | | ???? #????????# ?????????????????????????????????? | | ????^#?######?# ?????????????????????????????????? | | ?### ### ## ### ###??????????????????????????????? | | ?#"" "" "" ""#??????????????????????????????? | | ?# " " " " #??????????????????????????????? | | ?# #??????????????????????????????? | | ?# #??????????????????????????????? | | ## #####################??????????? | | ?????????? | | ?????????? | | ????????? | | ????????? | | @ k t t ????????? | | ## BB #####;##########???????????????? | | ?# #???###????????????????????????? | | ?# % #??????????????????????????????? | | ?# #??????????????????????????????? | | ?# % #??????????????????????????????? | | ?####"# #"""#######??????????????????????????????? | | ????#####????????????????????????????????????????? | | ?????????????????????????????????????????????????? | | | | | | | | | | | | | | | | | | | | | | | | | | | | | | | | | +----------------------------------------------------+ Best States ------------- Heat Dissipation 64 Energy Generation 24 Energy Capacity 1000 Matter Stores 300 Matter Capacity 300 Sight Range 16 Terrain Scan Density 10 Armor Coverage 800 Core Shielding 30 Weapon Cycling 15 Evasion (%) 65 Targeting Accuracy 8 Recoil Reduction 3 Relay Coupler Types 6 Relay Coupler Value 110 Item Schematics ----------------- Enh. Autogun | -8/Materials | Scanalyzed Robot Schematics ------------------ None Fabricated ------------ Nothing Repaired ---------- Lgt. Armor Plating | 14% | -10/Materials Spread Laser | 61% | -10/Materials Mak. Light Armor Plating | 44% | -8/Materials Alien Tech Used ----------------- None Achievements -------------- None Challenges ------------ None Game ------ Seed TransmissionThunderWartreads Manual? 0 Play Time 02:26:39 Cumulative 280.6 hours Start 2025.05.21 @ 07:45:16 End 2025.05.21 @ 12:04:24 Sessions 3 Manual Loads 0 Difficulty Rogue Special Mode None Game No. 129 Rogue 86 Adventurer 43 Explorer 0 Win Type - Total 6 Types 4/0/1/0/0/0/0/1/0/0 Lore% 77 Gallery% 70 Achievement% 64 Wizard Run 0 Options --------- Layout 0 ASCII 0 Keyboard 0 Movement Mouse Keybinds 0 Fullscreen 1 Font 24/Smallcaps Map View 76x50 Zoom Use 0% Tactical HUD 1 Map Filters NONE Filters NONE Steam 1 RUN: b4b9fde1-ac02-4e43-88d5-e652d2d462ce